{"text_format":"3","workbook":"xlsx","n_sheets":1,"sheets":["Bayram Bütçesi Planlayıcısı"],"not_rendered":{"defined_names":1},"read":"whole","date_system":"1900"}

{"sheet":"Bayram Bütçesi Planlayıcısı","index":0,"n_rows":37,"n_cols":12,"rows_kept":37,"merged":[[1,1,7,4],[9,1,9,4],[9,8,9,11],[19,1,19,4],[19,8,19,11],[30,1,30,4],[30,8,30,11]]}
[]
[null,"Bayram Bütçesi \nPlanlayıcısı"]
[]
[{"$nulls":8},"BAYRAM BÜTÇESİ",null,{"$f":"SUM(Hediyeler[Bütçe],Paket[Bütçe],(Seyahat[Bütçe],(Yemekler[Bütçe],(Eğlence[Bütçe],Çeşitli[Bütçe]))))","v":{"v":750,"d":"750.00 ₺"}}]
[{"$nulls":8},"FİİLİ HARCAMA",null,{"$f":"SUM((Hediyeler[Fiili],(Paket[Fiili],(Seyahat[Fiili],(Yemekler[Fiili],(Eğlence[Fiili],(Çeşitli[Fiili])))))))","v":{"v":820,"d":"820.00 ₺"}}]
[]
[{"$nulls":8},"FARK (bütçenin altında/üstünde)",null,{"$f":"SUM(K4-K5)","v":{"v":-70,"d":"-70.00 ₺"}}]
[]
[]
[null,"Hediyeler",{"$nulls":6},"Tatil Yemekleri"]
[null,"Öğe","Bütçe","Fiili","Fark",{"$nulls":3},"Öğe","Bütçe","Fiili","Fark"]
[null,"Aile",{"v":500,"d":"500.00 ₺"},{"v":495,"d":"495.00 ₺"},{"$f":"Hediyeler[[#This Row],[Bütçe]]-Hediyeler[[#This Row],[Fiili]]","v":{"v":5,"d":"5.00 ₺"}},{"$nulls":3},"Market",null,null,{"$f":"Yemekler[[#This Row],[Bütçe]]-Yemekler[[#This Row],[Fiili]]","v":{"v":0,"d":"0.00 ₺"}}]
[null,"Arkadaşlar",{"v":250,"d":"250.00 ₺"},{"v":325,"d":"325.00 ₺"},{"$f":"Hediyeler[[#This Row],[Bütçe]]-Hediyeler[[#This Row],[Fiili]]","v":{"v":-75,"d":"-75.00 ₺"}},{"$nulls":3},"İçkiler",null,null,{"$f":"Yemekler[[#This Row],[Bütçe]]-Yemekler[[#This Row],[Fiili]]","v":{"v":0,"d":"0.00 ₺"}}]
[null,"İş Arkadaşları",null,null,{"$f":"Hediyeler[[#This Row],[Bütçe]]-Hediyeler[[#This Row],[Fiili]]","v":{"v":0,"d":"0.00 ₺"}},{"$nulls":3},"Dekorasyonlar",null,null,{"$f":"Yemekler[[#This Row],[Bütçe]]-Yemekler[[#This Row],[Fiili]]","v":{"v":0,"d":"0.00 ₺"}}]
[null,"Öğretmenler, dadılar, çocuk bakıcıları, vb.",null,null,{"$f":"Hediyeler[[#This Row],[Bütçe]]-Hediyeler[[#This Row],[Fiili]]","v":{"v":0,"d":"0.00 ₺"}},{"$nulls":3},"Diğer (bu satırın son sütununda satır ekleme sekmesi)",null,null,{"$f":"Yemekler[[#This Row],[Bütçe]]-Yemekler[[#This Row],[Fiili]]","v":{"v":0,"d":"0.00 ₺"}}]
[null,"Bağışlar",null,null,{"$f":"Hediyeler[[#This Row],[Bütçe]]-Hediyeler[[#This Row],[Fiili]]","v":{"v":0,"d":"0.00 ₺"}},{"$nulls":3},"Toplam",{"$f":"SUBTOTAL(109,Yemekler[Bütçe])","v":{"v":0,"d":"0.00 ₺"}},{"$f":"SUBTOTAL(109,Yemekler[Fiili])","v":{"v":0,"d":"0.00 ₺"}},{"$f":"SUBTOTAL(109,Yemekler[Fark])","v":{"v":0,"d":"0.00 ₺"}}]
[null,"Diğer (bu satırın son sütununda satır ekleme sekmesi)",null,null,{"$f":"Hediyeler[[#This Row],[Bütçe]]-Hediyeler[[#This Row],[Fiili]]","v":{"v":0,"d":"0.00 ₺"}}]
[null,"Toplam",{"$f":"SUBTOTAL(109,Hediyeler[Bütçe])","v":{"v":750,"d":"750.00 ₺"}},{"$f":"SUBTOTAL(109,Hediyeler[Fiili])","v":{"v":820,"d":"820.00 ₺"}},{"$f":"SUBTOTAL(109,Hediyeler[Fark])","v":{"v":-70,"d":"-70.00 ₺"}}]
[]
[null,"Paket",{"$nulls":6},"Eğlence"]
[null,"Öğe","Bütçe","Fiili","Fark",{"$nulls":3},"Öğe","Bütçe","Fiili","Fark"]
[null,"Hediye paketi",null,null,{"$f":"Paket[[#This Row],[Bütçe]]-Paket[[#This Row],[Fiili]]","v":{"v":0,"d":"0.00 ₺"}},{"$nulls":3},"Parti yardımcısı (barmen, yemek şirketi, temizleyici, vb.)",null,null,{"$f":"Eğlence[[#This Row],[Bütçe]]-Eğlence[[#This Row],[Fiili]]","v":{"v":0,"d":"0.00 ₺"}}]
[null,"Etiketler",null,null,{"$f":"Paket[[#This Row],[Bütçe]]-Paket[[#This Row],[Fiili]]","v":{"v":0,"d":"0.00 ₺"}},{"$nulls":3},"Dekorasyonlar",null,null,{"$f":"Eğlence[[#This Row],[Bütçe]]-Eğlence[[#This Row],[Fiili]]","v":{"v":0,"d":"0.00 ₺"}}]
[null,"Malzemeler (kurdele, bant, vb.)",null,null,{"$f":"Paket[[#This Row],[Bütçe]]-Paket[[#This Row],[Fiili]]","v":{"v":0,"d":"0.00 ₺"}},{"$nulls":3},"Yiyecek ve içecek",null,null,{"$f":"Eğlence[[#This Row],[Bütçe]]-Eğlence[[#This Row],[Fiili]]","v":{"v":0,"d":"0.00 ₺"}}]
[null,"Kutular",null,null,{"$f":"Paket[[#This Row],[Bütçe]]-Paket[[#This Row],[Fiili]]","v":{"v":0,"d":"0.00 ₺"}},{"$nulls":3},"Giyim",null,null,{"$f":"Eğlence[[#This Row],[Bütçe]]-Eğlence[[#This Row],[Fiili]]","v":{"v":0,"d":"0.00 ₺"}}]
[null,"Posta",null,null,{"$f":"Paket[[#This Row],[Bütçe]]-Paket[[#This Row],[Fiili]]","v":{"v":0,"d":"0.00 ₺"}},{"$nulls":3},"Biletler",null,null,{"$f":"Eğlence[[#This Row],[Bütçe]]-Eğlence[[#This Row],[Fiili]]","v":{"v":0,"d":"0.00 ₺"}}]
[null,"Diğer (bu satırın son sütununda satır ekleme sekmesi)",null,null,{"$f":"Paket[[#This Row],[Bütçe]]-Paket[[#This Row],[Fiili]]","v":{"v":0,"d":"0.00 ₺"}},{"$nulls":3},"Dışarıda yemek",null,null,{"$f":"Eğlence[[#This Row],[Bütçe]]-Eğlence[[#This Row],[Fiili]]","v":{"v":0,"d":"0.00 ₺"}}]
[null,"Toplam",{"$f":"SUBTOTAL(109,Paket[Bütçe])","v":{"v":0,"d":"0.00 ₺"}},{"$f":"SUBTOTAL(109,Paket[Fiili])","v":{"v":0,"d":"0.00 ₺"}},{"$f":"SUBTOTAL(109,Paket[Fark])","v":{"v":0,"d":"0.00 ₺"}},{"$nulls":3},"Diğer (bu satırın son sütununda satır ekleme sekmesi)",null,null,{"$f":"Eğlence[[#This Row],[Bütçe]]-Eğlence[[#This Row],[Fiili]]","v":{"v":0,"d":"0.00 ₺"}}]
[{"$nulls":8},"Toplam",{"$f":"SUBTOTAL(109,Eğlence[Bütçe])","v":{"v":0,"d":"0.00 ₺"}},{"$f":"SUBTOTAL(109,Eğlence[Fiili])","v":{"v":0,"d":"0.00 ₺"}},{"$f":"SUBTOTAL(109,Eğlence[Fark])","v":{"v":0,"d":"0.00 ₺"}}]
[]
[null,"Seyahat",{"$nulls":6},"Çeşitli"]
[null,"Öğe","Bütçe","Fiili","Fark",{"$nulls":3},"Öğe","Bütçe","Fiili","Fark"]
[null,"Uçak Bileti",null,null,{"$f":"Seyahat[[#This Row],[Bütçe]]-Seyahat[[#This Row],[Fiili]]","v":{"v":0,"d":"0.00 ₺"}},{"$nulls":3},"Tatil fotoğrafları",null,null,{"$f":"Çeşitli[[#This Row],[Bütçe]]-Çeşitli[[#This Row],[Fiili]]","v":{"v":0,"d":"0.00 ₺"}}]
[null,"Konaklama",null,null,{"$f":"Seyahat[[#This Row],[Bütçe]]-Seyahat[[#This Row],[Fiili]]","v":{"v":0,"d":"0.00 ₺"}},{"$nulls":3},"Yakıt ",null,null,{"$f":"Çeşitli[[#This Row],[Bütçe]]-Çeşitli[[#This Row],[Fiili]]","v":{"v":0,"d":"0.00 ₺"}}]
[null,"Ulaşım",null,null,{"$f":"Seyahat[[#This Row],[Bütçe]]-Seyahat[[#This Row],[Fiili]]","v":{"v":0,"d":"0.00 ₺"}},{"$nulls":3},"Diğer (bu satırın son sütununda satır ekleme sekmesi)",null,null,{"$f":"Çeşitli[[#This Row],[Bütçe]]-Çeşitli[[#This Row],[Fiili]]","v":{"v":0,"d":"0.00 ₺"}}]
[null,"Diğer (bu satırın son sütununda satır ekleme sekmesi)",null,null,{"$f":"Seyahat[[#This Row],[Bütçe]]-Seyahat[[#This Row],[Fiili]]","v":{"v":0,"d":"0.00 ₺"}},{"$nulls":3},"Toplam",{"$f":"SUBTOTAL(109,Çeşitli[Bütçe])","v":{"v":0,"d":"0.00 ₺"}},{"$f":"SUBTOTAL(109,Çeşitli[Fiili])","v":{"v":0,"d":"0.00 ₺"}},{"$f":"SUBTOTAL(109,Çeşitli[Fark])","v":{"v":0,"d":"0.00 ₺"}}]
[null,"Toplam",{"$f":"SUBTOTAL(109,Seyahat[Bütçe])","v":{"v":0,"d":"0.00 ₺"}},{"$f":"SUBTOTAL(109,Seyahat[Fiili])","v":{"v":0,"d":"0.00 ₺"}},{"$f":"SUBTOTAL(109,Seyahat[Fark])","v":{"v":0,"d":"0.00 ₺"}}]